[Event "Live Chess"]
[Site "Chess.com"]
[Date "2023.05.20"]
[Round "-"]
[White "boilerboy1"]
[Black "Driftboard"]
[Result "1-0"]
[WhiteElo "1058"]
[BlackElo "711"]
[TimeControl "300"]
[EndTime "12:04:27 PDT"]
[Termination "boilerboy1 won by checkmate"]

1. e4 {[%clk 0:04:55.4]} 1... e5 {[%clk 0:04:59.3]} 2. Nc3 {[%clk 0:04:54.5]}
2... Nc6 {[%clk 0:04:58.7]} 3. Nf3 {[%clk 0:04:52.8]} 3... Nf6 {[%clk 0:04:58]}
4. d3 {[%clk 0:04:51.2]} 4... Bb4 {[%clk 0:04:57.4]} 5. Be2 {[%clk 0:04:49.3]}
5... O-O {[%clk 0:04:56.4]} 6. Bg5 {[%clk 0:04:47.2]} 6... h6 {[%clk 0:04:55.2]}
7. Bh4 {[%clk 0:04:45.3]} 7... Bxc3+ {[%clk 0:04:53.2]} 8. bxc3 {[%clk
0:04:43.4]} 8... d6 {[%clk 0:04:52.7]} 9. O-O {[%clk 0:04:41.1]} 9... Bg4 {[%clk
0:04:52.1]} 10. Re1 {[%clk 0:04:37.9]} 10... Bxf3 {[%clk 0:04:50.3]} 11. Bxf3
{[%clk 0:04:35.9]} 11... a6 {[%clk 0:04:48]} 12. a4 {[%clk 0:04:31.2]} 12... b5
{[%clk 0:04:45.1]} 13. axb5 {[%clk 0:04:29.1]} 13... axb5 {[%clk 0:04:43.6]} 14.
Rxa8 {[%clk 0:04:27.8]} 14... Qxa8 {[%clk 0:04:42.2]} 15. Qd2 {[%clk 0:04:26.2]}
15... Qd8 {[%clk 0:04:31.6]} 16. d4 {[%clk 0:04:24.4]} 16... exd4 {[%clk
0:04:29.7]} 17. cxd4 {[%clk 0:04:22.3]} 17... d5 {[%clk 0:04:25.1]} 18. e5
{[%clk 0:04:18.7]} 18... Ne4 {[%clk 0:03:46.9]} 19. Bxd8 {[%clk 0:04:14.9]}
19... Nxd2 {[%clk 0:03:45.3]} 20. Bxc7 {[%clk 0:04:12.1]} 20... Nxf3+ {[%clk
0:03:42.5]} 21. gxf3 {[%clk 0:04:10.1]} 21... Nxd4 {[%clk 0:03:40.6]} 22. Kg2
{[%clk 0:04:02.8]} 22... Nxc2 {[%clk 0:03:39.3]} 23. Re2 {[%clk 0:03:57]} 23...
Nd4 {[%clk 0:03:36.3]} 24. Re3 {[%clk 0:03:53.8]} 24... Ne6 {[%clk 0:03:34.5]}
25. Bd6 {[%clk 0:03:51.1]} 25... Rd8 {[%clk 0:03:31.4]} 26. Rb3 {[%clk
0:03:46.7]} 26... Nf4+ {[%clk 0:03:28.4]} 27. Kg3 {[%clk 0:03:39.5]} 27... Ne2+
{[%clk 0:03:26.9]} 28. Kg4 {[%clk 0:03:33.3]} 28... f6 {[%clk 0:03:23.9]} 29.
Rxb5 {[%clk 0:03:31.1]} 29... fxe5 {[%clk 0:03:22.8]} 30. Bxe5 {[%clk
0:03:26.7]} 30... Nc1 {[%clk 0:03:06.1]} 31. Rb7 {[%clk 0:03:24.6]} 31... Kf8
{[%clk 0:02:35]} 32. Bxg7+ {[%clk 0:03:23.1]} 32... Ke8 {[%clk 0:02:31.9]} 33.
Bd4 {[%clk 0:03:10.6]} 33... Ne2 {[%clk 0:02:25.9]} 34. Bg7 {[%clk 0:03:00]}
34... Rd7 {[%clk 0:02:22.3]} 35. Rb8+ {[%clk 0:02:55.7]} 35... Kf7 {[%clk
0:02:08]} 36. Bxh6 {[%clk 0:02:52.3]} 36... Kg6 {[%clk 0:02:01.2]} 37. Be3
{[%clk 0:02:23.3]} 37... Nc3 {[%clk 0:01:51.5]} 38. Rb6+ {[%clk 0:02:19]} 38...
Kf7 {[%clk 0:01:28.9]} 39. Bd4 {[%clk 0:02:14.4]} 39... Na4 {[%clk 0:01:06]} 40.
Rf6+ {[%clk 0:02:11.9]} 40... Ke7 {[%clk 0:01:03.2]} 41. Rf4 {[%clk 0:02:06.5]}
41... Rb7 {[%clk 0:00:31.6]} 42. h4 {[%clk 0:02:01.7]} 42... Rb4 {[%clk
0:00:19.3]} 43. Bf6+ {[%clk 0:01:59.5]} 43... Kf7 {[%clk 0:00:17]} 44. Rxb4
{[%clk 0:01:58.3]} 44... Kxf6 {[%clk 0:00:16.6]} 45. Rxa4 {[%clk 0:01:56.9]}
45... Kg6 {[%clk 0:00:16.1]} 46. Rd4 {[%clk 0:01:54.4]} 46... Kf7 {[%clk
0:00:15.6]} 47. Rxd5 {[%clk 0:01:53.5]} 47... Kg7 {[%clk 0:00:15.3]} 48. Rg5+
{[%clk 0:01:51.5]} 48... Kf6 {[%clk 0:00:14.6]} 49. f4 {[%clk 0:01:50.1]} 49...
Ke6 {[%clk 0:00:14.2]} 50. h5 {[%clk 0:01:49.1]} 50... Kd6 {[%clk 0:00:14]} 51.
h6 {[%clk 0:01:47.5]} 51... Kc6 {[%clk 0:00:13.6]} 52. h7 {[%clk 0:01:46.7]}
52... Kd6 {[%clk 0:00:13.3]} 53. h8=Q {[%clk 0:01:45.6]} 53... Kc6 {[%clk
0:00:13]} 54. Qf6+ {[%clk 0:01:44]} 54... Kd7 {[%clk 0:00:10.8]} 55. Rg7+ {[%clk
0:01:42.9]} 55... Kc8 {[%clk 0:00:07.1]} 56. Qf8# {[%clk 0:01:41.3]} 1-0

[Event "Live Chess"]
[Site "Chess.com"]
[Date "2023.05.20"]
[Round "-"]
[White "Man-Del-Brot"]
[Black "BostonStrangler"]
[Result "0-1"]
[WhiteElo "1175"]
[BlackElo "2049"]
[TimeControl "300"]
[EndTime "12:04:27 PDT"]
[Termination "BostonStrangler won by checkmate"]

1. d4 {[%clk 0:04:54.7]} 1... Nf6 {[%clk 0:04:58.6]} 2. Nf3 {[%clk 0:04:51.2]}
2... c5 {[%clk 0:04:57.9]} 3. c3 {[%clk 0:04:45.8]} 3... g6 {[%clk 0:04:54.5]}
4. Bf4 {[%clk 0:04:42.4]} 4... Bg7 {[%clk 0:04:53.3]} 5. e3 {[%clk 0:04:41.2]}
5... O-O {[%clk 0:04:51.9]} 6. h3 {[%clk 0:04:39.6]} 6... Nc6 {[%clk 0:04:49.1]}
7. Be2 {[%clk 0:04:29.7]} 7... d6 {[%clk 0:04:47.8]} 8. O-O {[%clk 0:04:27.4]}
8... b6 {[%clk 0:04:43.4]} 9. d5 {[%clk 0:03:50.6]} 9... Nb8 {[%clk 0:04:38.4]}
10. c4 {[%clk 0:03:33.1]} 10... b5 {[%clk 0:04:34.9]} 11. Nc3 {[%clk 0:03:26.5]}
11... b4 {[%clk 0:04:32.6]} 12. Nb1 {[%clk 0:03:21.4]} 12... a5 {[%clk
0:04:31.7]} 13. Nbd2 {[%clk 0:03:07]} 13... a4 {[%clk 0:04:30.7]} 14. a3 {[%clk
0:03:03.3]} 14... b3 {[%clk 0:04:28.1]} 15. Bd3 {[%clk 0:02:54.1]} 15... Nh5
{[%clk 0:04:25.1]} 16. Bh2 {[%clk 0:02:49.7]} 16... Bxb2 {[%clk 0:04:23.7]} 17.
Rb1 {[%clk 0:02:42.3]} 17... Bxa3 {[%clk 0:04:22.7]} 18. Ra1 {[%clk 0:02:15]}
18... Bb2 {[%clk 0:04:18.9]} 19. Rb1 {[%clk 0:02:12.6]} 19... Bg7 {[%clk
0:04:17.6]} 20. e4 {[%clk 0:02:04.3]} 20... Nd7 {[%clk 0:04:15.5]} 21. Re1
{[%clk 0:02:01.7]} 21... Ne5 {[%clk 0:04:13.4]} 22. Nxe5 {[%clk 0:01:59.6]}
22... Bxe5 {[%clk 0:04:12.1]} 23. Nf3 {[%clk 0:01:51.4]} 23... Bxh2+ {[%clk
0:04:09.4]} 24. Kxh2 {[%clk 0:01:48.1]} 24... Nf4 {[%clk 0:04:08.9]} 25. Ng1
{[%clk 0:01:27.8]} 25... Ba6 {[%clk 0:04:03.2]} 26. g3 {[%clk 0:01:21.8]} 26...
Nxd3 {[%clk 0:04:01.7]} 27. Qxd3 {[%clk 0:01:19.8]} 27... Qa5 {[%clk 0:04:01.4]}
28. Ne2 {[%clk 0:01:17.2]} 28... Qb4 {[%clk 0:04:00]} 29. Nc3 {[%clk 0:01:14.7]}
29... Bxc4 {[%clk 0:03:55.1]} 30. Qe3 {[%clk 0:01:05.1]} 30... a3 {[%clk
0:03:43.8]} 31. Nd1 {[%clk 0:00:57.6]} 31... a2 {[%clk 0:03:38.4]} 32. Rxb3
{[%clk 0:00:54]} 32... Bxb3 {[%clk 0:03:35.2]} 33. Nb2 {[%clk 0:00:49.8]} 33...
a1=Q {[%clk 0:03:32.9]} 34. Rxa1 {[%clk 0:00:47.2]} 34... Rxa1 {[%clk
0:03:32.8]} 35. Nd3 {[%clk 0:00:45.4]} 35... Qd4 {[%clk 0:03:28.2]} 36. Qxd4
{[%clk 0:00:35.9]} 36... cxd4 {[%clk 0:03:27]} 37. Nb4 {[%clk 0:00:34.5]} 37...
Bc4 {[%clk 0:03:22.1]} 38. Nc6 {[%clk 0:00:32.1]} 38... e5 {[%clk 0:03:13.5]}
39. dxe6 {[%clk 0:00:29.1]} 39... fxe6 {[%clk 0:03:12]} 40. Nxd4 {[%clk
0:00:27.7]} 40... Rxf2# {[%clk 0:03:10.6]} 0-1

[Event "Live Chess"]
[Site "Chess.com"]
[Date "2023.05.20"]
[Round "-"]
[White "zdanevych"]
[Black "AbilifyXL"]
[Result "0-1"]
[WhiteElo "1502"]
[BlackElo "1952"]
[TimeControl "300"]
[EndTime "12:04:28 PDT"]
[Termination "AbilifyXL won by resignation"]

1. d4 {[%clk 0:04:58.7]} 1... d5 {[%clk 0:04:58.6]} 2. c4 {[%clk 0:04:57.1]}
2... c6 {[%clk 0:04:58]} 3. Nc3 {[%clk 0:04:55.7]} 3... Nf6 {[%clk 0:04:57.6]}
4. Nf3 {[%clk 0:04:55]} 4... a6 {[%clk 0:04:53.8]} 5. h3 {[%clk 0:04:54]} 5...
b5 {[%clk 0:04:53]} 6. cxd5 {[%clk 0:04:52.6]} 6... cxd5 {[%clk 0:04:52.3]} 7.
a3 {[%clk 0:04:51.2]} 7... Bf5 {[%clk 0:04:51.5]} 8. Bf4 {[%clk 0:04:49.3]} 8...
e6 {[%clk 0:04:50.8]} 9. e3 {[%clk 0:04:48]} 9... Bd6 {[%clk 0:04:50.2]} 10.
Bxd6 {[%clk 0:04:46.6]} 10... Qxd6 {[%clk 0:04:50.1]} 11. Bd3 {[%clk 0:04:46]}
11... Bg6 {[%clk 0:04:49.1]} 12. Bxg6 {[%clk 0:04:44.3]} 12... hxg6 {[%clk
0:04:49]} 13. O-O {[%clk 0:04:43.9]} 13... O-O {[%clk 0:04:48.2]} 14. Rc1 {[%clk
0:04:41.9]} 14... Nc6 {[%clk 0:04:47.4]} 15. Ne2 {[%clk 0:04:33.2]} 15... Na5
{[%clk 0:04:46.4]} 16. b4 {[%clk 0:04:30.9]} 16... Nc4 {[%clk 0:04:44.7]} 17.
Nd2 {[%clk 0:04:29.3]} 17... Nxa3 {[%clk 0:04:43.3]} 18. Rc5 {[%clk 0:04:23.6]}
18... Nd7 {[%clk 0:04:39.6]} 19. Rc3 {[%clk 0:04:20.9]} 19... Qxb4 {[%clk
0:04:36.7]} 20. Rc7 {[%clk 0:04:16.1]} 20... Nf6 {[%clk 0:04:33.4]} 21. Qc1
{[%clk 0:04:11.6]} 21... Nc4 {[%clk 0:04:32.1]} 22. Nxc4 {[%clk 0:04:10.4]}
22... dxc4 {[%clk 0:04:30.4]} 23. Rd1 {[%clk 0:03:53.1]} 23... Ne4 {[%clk
0:04:26.7]} 24. Nf4 {[%clk 0:03:48.8]} 24... Qd6 {[%clk 0:04:24.6]} 25. Rc5
{[%clk 0:03:42.9]} 25... Nxc5 {[%clk 0:04:23.4]} 26. dxc5 {[%clk 0:03:42.8]}
26... Qxc5 {[%clk 0:04:22.9]} 27. Nd3 {[%clk 0:03:32.2]} 27... Qb6 {[%clk
0:04:19.6]} 28. Ne5 {[%clk 0:03:30.6]} 28... Rfd8 {[%clk 0:04:16.9]} 29. Rd7
{[%clk 0:03:24]} 29... Rxd7 {[%clk 0:04:14]} 30. Nxd7 {[%clk 0:03:23.9]} 30...
Qd6 {[%clk 0:04:12.1]} 0-1

[Event "Live Chess"]
[Site "Chess.com"]
[Date "2023.05.20"]
[Round "-"]
[White "Horseymobile"]
[Black "BritishIsles"]
[Result "0-1"]
[WhiteElo "1193"]
[BlackElo "2413"]
[TimeControl "300"]
[EndTime "12:04:33 PDT"]
[Termination "BritishIsles won by checkmate"]

1. d4 {[%clk 0:04:57]} 1... Nf6 {[%clk 0:04:58.1]} 2. c4 {[%clk 0:04:56]} 2...
e6 {[%clk 0:04:56.1]} 3. Nc3 {[%clk 0:04:54.1]} 3... Bb4 {[%clk 0:04:54.7]} 4.
Qc2 {[%clk 0:04:52.4]} 4... O-O {[%clk 0:04:52.7]} 5. Nf3 {[%clk 0:04:49.5]}
5... b6 {[%clk 0:04:50.2]} 6. Bg5 {[%clk 0:04:40.4]} 6... h6 {[%clk 0:04:42.6]}
7. Bh4 {[%clk 0:04:38.9]} 7... Bb7 {[%clk 0:04:41.3]} 8. e3 {[%clk 0:04:31.3]}
8... d5 {[%clk 0:04:39.4]} 9. Be2 {[%clk 0:04:21.9]} 9... Be7 {[%clk 0:04:35.8]}
10. O-O {[%clk 0:04:08.9]} 10... c5 {[%clk 0:04:34.5]} 11. Rad1 {[%clk
0:04:01.2]} 11... Nbd7 {[%clk 0:04:31.5]} 12. Ne5 {[%clk 0:03:26.2]} 12... cxd4
{[%clk 0:04:22.9]} 13. exd4 {[%clk 0:03:25]} 13... Rc8 {[%clk 0:04:20.7]} 14. f4
{[%clk 0:03:18.1]} 14... dxc4 {[%clk 0:04:17.2]} 15. Bxc4 {[%clk 0:03:08.2]}
15... Nd5 {[%clk 0:03:32.7]} 16. Bxe7 {[%clk 0:02:45.8]} 16... Qxe7 {[%clk
0:03:32.6]} 17. Bb5 {[%clk 0:02:22.1]} 17... N7f6 {[%clk 0:03:30.4]} 18. Qd3
{[%clk 0:02:07.7]} 18... Rfd8 {[%clk 0:03:27.9]} 19. f5 {[%clk 0:01:57.2]} 19...
exf5 {[%clk 0:03:04.4]} 20. Qxf5 {[%clk 0:01:50.5]} 20... Ne3 {[%clk 0:03:01]}
21. Qf4 {[%clk 0:01:26.8]} 21... Nxd1 {[%clk 0:02:53.7]} 22. Rxd1 {[%clk
0:01:21.1]} 22... Qb4 {[%clk 0:02:48.2]} 23. Bd3 {[%clk 0:00:50.9]} 23... Qxb2
{[%clk 0:02:26.2]} 24. Qf5 {[%clk 0:00:42.3]} 24... Qxg2# {[%clk 0:02:23.1]} 0-1

[Event "Live Chess"]
[Site "Chess.com"]
[Date "2023.05.20"]
[Round "-"]
[White "whitedjohn"]
[Black "Duke_of_Bebington"]
[Result "0-1"]
[WhiteElo "1662"]
[BlackElo "1574"]
[TimeControl "300"]
[EndTime "12:04:40 PDT"]
[Termination "Duke_of_Bebington won by resignation"]

1. e4 {[%clk 0:04:57.6]} 1... e5 {[%clk 0:04:59]} 2. Nf3 {[%clk 0:04:52.9]} 2...
Nf6 {[%clk 0:04:58.1]} 3. Nxe5 {[%clk 0:04:50]} 3... d6 {[%clk 0:04:56.6]} 4.
Nf3 {[%clk 0:04:47.8]} 4... Nxe4 {[%clk 0:04:55.6]} 5. d4 {[%clk 0:04:46.4]}
5... d5 {[%clk 0:04:54.5]} 6. Bd3 {[%clk 0:04:43.8]} 6... Bf5 {[%clk 0:04:27.3]}
7. O-O {[%clk 0:04:41.1]} 7... Bd6 {[%clk 0:04:22.9]} 8. Re1 {[%clk 0:04:38.9]}
8... O-O {[%clk 0:04:20.6]} 9. c4 {[%clk 0:04:35.4]} 9... c6 {[%clk 0:04:18.8]}
10. cxd5 {[%clk 0:04:32.5]} 10... cxd5 {[%clk 0:04:17.5]} 11. Nc3 {[%clk
0:04:30.5]} 11... Nxc3 {[%clk 0:04:06.3]} 12. bxc3 {[%clk 0:04:28.7]} 12... Bxd3
{[%clk 0:04:04]} 13. Qxd3 {[%clk 0:04:26.7]} 13... Nc6 {[%clk 0:03:59.2]} 14.
Bg5 {[%clk 0:04:15.1]} 14... f6 {[%clk 0:03:28.6]} 15. Bh4 {[%clk 0:04:08.5]}
15... Re8 {[%clk 0:03:22.9]} 16. Rxe8+ {[%clk 0:04:04.1]} 16... Qxe8 {[%clk
0:03:21.6]} 17. Re1 {[%clk 0:04:01.8]} 17... Qf7 {[%clk 0:03:20]} 18. Qe3 {[%clk
0:03:49.7]} 18... Ne7 {[%clk 0:03:08.3]} 19. Qe6 {[%clk 0:03:43]} 19... Qxe6
{[%clk 0:02:59.1]} 20. Rxe6 {[%clk 0:03:40.7]} 20... Nf5 {[%clk 0:02:48.3]} 21.
g4 {[%clk 0:03:29.6]} 21... Nxh4 {[%clk 0:02:31.5]} 22. Nxh4 {[%clk 0:03:27.3]}
22... Rd8 {[%clk 0:02:27.7]} 23. Nf5 {[%clk 0:03:23]} 23... Ba3 {[%clk
0:02:18.8]} 24. Ne7+ {[%clk 0:03:10.1]} 24... Kf7 {[%clk 0:02:14.3]} 0-1

[Event "Live Chess"]
[Site "Chess.com"]
[Date "2023.05.20"]
[Round "-"]
[White "TDCMF"]
[Black "onemoretime1975"]
[Result "0-1"]
[WhiteElo "360"]
[BlackElo "1924"]
[TimeControl "300"]
[EndTime "12:04:49 PDT"]
[Termination "onemoretime1975 won by checkmate"]

1. e4 {[%clk 0:04:58.4]} 1... e6 {[%clk 0:04:59.1]} 2. e5 {[%clk 0:04:56.2]}
2... d5 {[%clk 0:04:57.6]} 3. d4 {[%clk 0:04:55.3]} 3... c5 {[%clk 0:04:55.7]}
4. Nf3 {[%clk 0:04:54]} 4... Nc6 {[%clk 0:04:54.3]} 5. c3 {[%clk 0:04:49.4]}
5... Bd7 {[%clk 0:04:51]} 6. Nbd2 {[%clk 0:04:36.1]} 6... Qb6 {[%clk 0:04:48.3]}
7. c4 {[%clk 0:04:33.3]} 7... Nxd4 {[%clk 0:04:36.4]} 8. Nxd4 {[%clk 0:04:30]}
8... cxd4 {[%clk 0:04:34.7]} 9. Qc2 {[%clk 0:04:25]} 9... Rc8 {[%clk 0:04:28.4]}
10. b3 {[%clk 0:04:13.6]} 10... Bb4 {[%clk 0:04:23.1]} 11. Rb1 {[%clk
0:04:04.9]} 11... Nh6 {[%clk 0:04:11.1]} 12. h3 {[%clk 0:03:51.3]} 12... Nf5
{[%clk 0:04:06.5]} 13. Bd3 {[%clk 0:03:40.3]} 13... O-O {[%clk 0:03:56.2]} 14.
a3 {[%clk 0:03:29.2]} 14... Bxd2+ {[%clk 0:03:49.7]} 15. Bxd2 {[%clk 0:03:27.3]}
15... g6 {[%clk 0:03:44.5]} 16. b4 {[%clk 0:03:24.2]} 16... dxc4 {[%clk
0:03:42.2]} 17. Bxc4 {[%clk 0:03:18.5]} 17... Bb5 {[%clk 0:03:37.9]} 18. Qb3
{[%clk 0:02:34.4]} 18... Bxc4 {[%clk 0:03:35.2]} 19. Qa4 {[%clk 0:02:28.2]}
19... Bb5 {[%clk 0:03:27.7]} 20. Qb3 {[%clk 0:02:19.4]} 20... Qa6 {[%clk
0:03:22.8]} 21. Qb2 {[%clk 0:02:12.7]} 21... Rc7 {[%clk 0:03:11.9]} 22. Rc1
{[%clk 0:02:10.8]} 22... Rfc8 {[%clk 0:03:07.4]} 23. Rxc7 {[%clk 0:02:06.9]}
23... Rxc7 {[%clk 0:03:06.1]} 24. g4 {[%clk 0:01:58.8]} 24... Nh4 {[%clk
0:03:02.4]} 25. Bg5 {[%clk 0:01:36.7]} 25... Nf3+ {[%clk 0:03:00.5]} 26. Kd1
{[%clk 0:01:32.8]} 26... Nxg5 {[%clk 0:02:57.7]} 27. Kd2 {[%clk 0:01:24.3]}
27... Ne4+ {[%clk 0:02:54.4]} 28. Ke1 {[%clk 0:01:18]} 28... Rc3 {[%clk
0:02:49.1]} 29. f3 {[%clk 0:01:14.2]} 29... Ng5 {[%clk 0:02:39.5]} 30. Rh2
{[%clk 0:01:12.8]} 30... Nxf3+ {[%clk 0:02:37.3]} 31. Kd1 {[%clk 0:01:08.2]}
31... Ba4+ {[%clk 0:02:30.5]} 32. Rc2 {[%clk 0:01:03.8]} 32... Qf1# {[%clk
0:02:27.1]} 0-1

[Event "Live Chess"]
[Site "Chess.com"]
[Date "2023.05.20"]
[Round "-"]
[White "hturner40"]
[Black "OceanFloater"]
[Result "1-0"]
[WhiteElo "1799"]
[BlackElo "979"]
[TimeControl "300"]
[EndTime "12:04:51 PDT"]
[Termination "hturner40 won by resignation"]

1. Nf3 {[%clk 0:04:56.5]} 1... c6 {[%clk 0:04:59.2]} 2. Nc3 {[%clk 0:04:51.6]}
2... d5 {[%clk 0:04:58.6]} 3. e4 {[%clk 0:04:50.6]} 3... Bg4 {[%clk 0:04:53.8]}
4. h3 {[%clk 0:04:46.4]} 4... Bh5 {[%clk 0:04:52.2]} 5. g4 {[%clk 0:04:43.7]}
5... Bg6 {[%clk 0:04:49.5]} 6. d3 {[%clk 0:04:41.8]} 6... d4 {[%clk 0:04:47.5]}
7. Ne2 {[%clk 0:04:39.3]} 7... e5 {[%clk 0:04:46]} 8. Nxe5 {[%clk 0:04:35.8]}
8... Bc5 {[%clk 0:04:37.1]} 9. h4 {[%clk 0:04:20.3]} 9... h6 {[%clk 0:04:34.2]}
10. Nxg6 {[%clk 0:04:11.4]} 10... fxg6 {[%clk 0:04:32.4]} 11. f4 {[%clk
0:04:09.4]} 11... Nf6 {[%clk 0:04:31.1]} 12. Ng3 {[%clk 0:04:05.1]} 12... h5
{[%clk 0:04:28.5]} 13. Be2 {[%clk 0:03:58.4]} 13... Nbd7 {[%clk 0:04:21.2]} 14.
gxh5 {[%clk 0:03:53]} 14... gxh5 {[%clk 0:04:19.5]} 15. Nxh5 {[%clk 0:03:47.9]}
15... Nxh5 {[%clk 0:04:18.2]} 16. Bxh5+ {[%clk 0:03:46.6]} 16... Kf8 {[%clk
0:04:12.4]} 17. e5 {[%clk 0:03:31.7]} 17... Rg8 {[%clk 0:03:58.2]} 18. Bg6
{[%clk 0:03:14.6]} 18... Qe7 {[%clk 0:03:52.8]} 19. Qh5 {[%clk 0:03:10.6]} 19...
Qe6 {[%clk 0:03:42.6]} 20. Be4 {[%clk 0:02:53.7]} 20... g6 {[%clk 0:03:34.1]}
21. Qh6+ {[%clk 0:02:25]} 21... Rg7 {[%clk 0:03:29.5]} 22. Rg1 {[%clk
0:02:00.2]} 22... Qh3 {[%clk 0:03:13.7]} 23. Qg5 {[%clk 0:01:45.8]} 23... Be7
{[%clk 0:03:02.8]} 24. Qg4 {[%clk 0:01:33.6]} 24... Bxh4+ {[%clk 0:02:58.1]} 25.
Kd1 {[%clk 0:01:28.6]} 25... Qh2 {[%clk 0:02:47.5]} 26. Qg2 {[%clk 0:01:21.2]}
26... Qxg2 {[%clk 0:02:40.1]} 27. Rxg2 {[%clk 0:01:19.4]} 27... Kf7 {[%clk
0:02:38.2]} 28. Bd2 {[%clk 0:01:09]} 28... Rh8 {[%clk 0:02:35.4]} 29. Ke2 {[%clk
0:01:05.4]} 29... Be7 {[%clk 0:02:31.7]} 30. Rag1 {[%clk 0:01:03.8]} 30... Nf8
{[%clk 0:02:27.8]} 31. f5 {[%clk 0:00:57.6]} 31... Rh6 {[%clk 0:02:12.6]} 32.
Bxh6 {[%clk 0:00:48.7]} 1-0

[Event "Live Chess"]
[Site "Chess.com"]
[Date "2023.05.20"]
[Round "-"]
[White "booktrunk"]
[Black "Richardallis"]
[Result "0-1"]
[WhiteElo "1330"]
[BlackElo "1742"]
[TimeControl "300"]
[EndTime "12:05:00 PDT"]
[Termination "Richardallis won by checkmate"]

1. d4 {[%clk 0:04:57.8]} 1... c5 {[%clk 0:04:58.8]} 2. dxc5 {[%clk 0:04:56.5]}
2... Nc6 {[%clk 0:04:57.8]} 3. Be3 {[%clk 0:04:55.2]} 3... e5 {[%clk 0:04:57]}
4. g3 {[%clk 0:04:51.3]} 4... f5 {[%clk 0:04:55.7]} 5. Bg2 {[%clk 0:04:49.9]}
5... Nf6 {[%clk 0:04:54.2]} 6. Nc3 {[%clk 0:04:44.5]} 6... Qa5 {[%clk
0:04:52.3]} 7. Qd2 {[%clk 0:04:39.8]} 7... Bxc5 {[%clk 0:04:50.2]} 8. Bxc5
{[%clk 0:04:35.7]} 8... Qxc5 {[%clk 0:04:48.9]} 9. Nf3 {[%clk 0:04:32.1]} 9...
d6 {[%clk 0:04:46.6]} 10. Rb1 {[%clk 0:04:27.2]} 10... a5 {[%clk 0:04:43.3]} 11.
a3 {[%clk 0:04:25.7]} 11... a4 {[%clk 0:04:41.8]} 12. O-O {[%clk 0:04:21.9]}
12... O-O {[%clk 0:04:40.2]} 13. e3 {[%clk 0:04:18.8]} 13... e4 {[%clk
0:04:39.2]} 14. Ne1 {[%clk 0:04:14.4]} 14... b6 {[%clk 0:04:32.6]} 15. h3 {[%clk
0:04:09.9]} 15... Ba6 {[%clk 0:04:31.1]} 16. Ne2 {[%clk 0:04:06.7]} 16... Qc4
{[%clk 0:04:27.5]} 17. Nf4 {[%clk 0:03:57.4]} 17... Rad8 {[%clk 0:04:19.7]} 18.
b3 {[%clk 0:03:55.3]} 18... Qf7 {[%clk 0:04:16.5]} 19. bxa4 {[%clk 0:03:51.6]}
19... Bxf1 {[%clk 0:04:15]} 20. Bxf1 {[%clk 0:03:50.4]} 20... Qc7 {[%clk
0:04:11.1]} 21. Bb5 {[%clk 0:03:44.7]} 21... Ne5 {[%clk 0:04:09.6]} 22. Ne6
{[%clk 0:03:39]} 22... Qe7 {[%clk 0:04:07.5]} 23. Nxf8 {[%clk 0:03:26.4]} 23...
Kxf8 {[%clk 0:04:06.2]} 24. Kg2 {[%clk 0:03:23.7]} 24... Qc7 {[%clk 0:04:02.2]}
25. Be2 {[%clk 0:03:19.4]} 25... Ra8 {[%clk 0:03:55.5]} 26. Rb4 {[%clk
0:03:16.1]} 26... d5 {[%clk 0:03:49.6]} 27. Bb5 {[%clk 0:03:13.8]} 27... Qc5
{[%clk 0:03:44.3]} 28. f3 {[%clk 0:03:01.9]} 28... exf3+ {[%clk 0:03:40.7]} 29.
Nxf3 {[%clk 0:03:00.1]} 29... Ne4 {[%clk 0:03:39.3]} 30. Qe2 {[%clk 0:02:48.8]}
30... Nxf3 {[%clk 0:03:32]} 31. Kxf3 {[%clk 0:02:47.1]} 31... Qc7 {[%clk
0:03:27.5]} 32. Qd3 {[%clk 0:02:42.4]} 32... Qxg3+ {[%clk 0:03:23.3]} 33. Ke2
{[%clk 0:02:41.3]} 33... Qg2+ {[%clk 0:03:18.8]} 34. Kd1 {[%clk 0:02:39.4]}
34... Nf2+ {[%clk 0:03:17.5]} 35. Ke2 {[%clk 0:02:37.9]} 35... Nxd3+ {[%clk
0:03:17]} 36. Kxd3 {[%clk 0:02:37.8]} 36... Rc8 {[%clk 0:03:13.4]} 37. Kd4
{[%clk 0:02:33.6]} 37... Qd2+ {[%clk 0:03:06.5]} 38. Ke5 {[%clk 0:02:30.9]}
38... Qxe3+ {[%clk 0:03:05.7]} 39. Kxd5 {[%clk 0:02:29.2]} 39... Rc5+ {[%clk
0:03:03.7]} 40. Kd6 {[%clk 0:02:26.7]} 40... Qe5+ {[%clk 0:03:03.1]} 41. Kd7
{[%clk 0:02:24]} 41... Rc7+ {[%clk 0:03:02]} 42. Kd8 {[%clk 0:02:20.4]} 42...
Qe7# {[%clk 0:03:01.4]} 0-1